bitfinex-derivatives/quotes_BTCF0:USTF0_20251130
["timestamp","ask_amount","ask_price","bid_price","bid_amount"]
[1764518173357,0.42729,91503.0,91502.0,0.00116387]
[1764518173742,0.42429,91503.0,91502.0,0.00016387]
[1764518173948,0.42829,91503.0,91502.0,0.00116387]
[1764518175952,0.04392,91493.0,91492.0,0.0543335]
[1764518176256,0.20392,91493.0,91492.0,0.0543335]
[1764518176860,0.2148505,91493.0,91492.0,0.0543335]
[1764518177052,0.2168505,91493.0,91492.0,0.0553335]
[1764518178360,0.20592,91493.0,91492.0,0.0553335]
[1764518179660,0.20592,91493.0,91492.0,0.0543335]
[1764518181957,0.20592,91493.0,91492.0,0.0330435]
[1764518182562,0.20592,91493.0,91492.0,0.0543335]
[1764518183265,0.20392,91493.0,91492.0,0.0543335]
[1764518183463,0.20592,91493.0,91492.0,0.0543335]
[1764518184860,0.20392,91493.0,91492.0,0.0543335]
[1764518185058,0.20592,91493.0,91492.0,0.0543335]
[1764518185956,0.20392,91493.0,91492.0,0.0543335]
[1764518186152,0.20592,91493.0,91492.0,0.0543335]
[1764518191264,0.20392,91493.0,91492.0,0.0543335]
[1764518191457,0.20592,91493.0,91492.0,0.0543335]
[1764518204186,0.20592,91493.0,91492.0,0.0681335]
[1764518218388,0.162,91493.0,91492.0,0.0681335]
[1764518218587,0.002,91493.0,91492.0,0.0681335]
[1764518220292,0.04696,91493.0,91492.0,0.0681335]
[1764518233791,0.002,91493.0,91492.0,0.0681335]
[1764518233998,0.002,91493.0,91492.0,0.4289335]
[1764518234305,0.00016387,91502.0,91501.0,0.04417]
[1764518234497,0.3608,91509.0,91508.0,0.0550987]
[1764518234698,0.35163614,91509.0,91508.0,0.2271387]
[1764518237305,0.37297614,91509.0,91508.0,0.0550987]
[1764518237805,0.37897614,91509.0,91508.0,0.0560987]
[1764518238310,0.37897614,91509.0,91508.0,0.2281387]
[1764518239012,0.40147614,91509.0,91508.0,0.0560987]
[1764518239207,0.40147614,91509.0,91508.0,0.2281387]
[1764518239711,0.40147614,91509.0,91508.0,0.0560987]
[1764518239908,0.40147614,91509.0,91508.0,0.2281387]
[1764518241012,0.40147614,91509.0,91508.0,0.0560987]
[1764518241211,0.40147614,91509.0,91508.0,0.2281387]
[1764518241410,0.40147614,91509.0,91508.0,0.0560987]
[1764518241706,0.40147614,91509.0,91508.0,0.2281387]
[1764518243211,0.04984,91509.0,91508.0,0.2281387]
[1764518244110,0.04984,91509.0,91508.0,0.0560987]
[1764518244414,0.04984,91509.0,91508.0,0.2281387]
[1764518245722,0.04984,91509.0,91508.0,0.04517]
[1764518245929,0.04984,91509.0,91508.0,0.21717]
[1764518249319,0.04984,91509.0,91508.0,0.04517]
[1764518249521,0.04984,91509.0,91508.0,0.001]
[1764518249722,0.44815,91509.0,91508.0,0.001]
[1764518252930,0.80895,91509.0,91508.0,0.001]
[1764518254931,0.80895,91509.0,91508.0,0.0119287]
[1764518256029,0.80895,91509.0,91508.0,0.001]
[1764518257626,0.80064,91509.0,91508.0,0.001]
[1764518258631,0.80064,91509.0,91508.0,0.02254]
[1764518258932,0.80064,91509.0,91508.0,0.04452]
[1764518262329,0.80064,91509.0,91508.0,0.02254]
[1764518263535,0.80064,91509.0,91508.0,0.001]
[1764518263734,0.80895,91509.0,91508.0,0.001]
[1764518266335,0.045,91495.0,91494.0,0.0981396]
[1764518266528,0.045,91493.0,91492.0,0.022394]
[1764518266840,0.145,91493.0,91492.0,0.0335135]
[1764518267838,0.145,91493.0,91492.0,0.0365135]
[1764518268133,0.147,91493.0,91492.0,0.0365135]
[1764518268840,0.147,91493.0,91492.0,0.0355135]
[1764518270136,0.147,91493.0,91492.0,0.0579335]
[1764518270436,0.457,91493.0,91492.0,0.0124635]
[1764518270829,0.455,91493.0,91492.0,0.00205263]
[1764518271031,0.457,91493.0,91492.0,0.001]
[1764518271325,0.457,91493.0,91492.0,0.01283006]
[1764518271938,0.45708003,91493.0,91492.0,0.01283006]
[1764518273238,0.45508003,91493.0,91492.0,0.01183006]
[1764518273536,0.45908003,91493.0,91492.0,0.001]
[1764518273838,0.045,91487.0,91482.0,0.01313]
[1764518274140,0.5258,91487.0,91482.0,0.01313]
[1764518274331,0.5258,91487.0,91486.0,0.02232327]
[1764518274928,0.5367312,91487.0,91486.0,0.02232327]
[1764518275128,0.4187312,91487.0,91486.0,0.03527895]
[1764518275326,0.8187312,91487.0,91486.0,0.03527895]
[1764518276832,0.8167312,91487.0,91486.0,0.03427895]
[1764518277140,0.8187312,91487.0,91486.0,0.03527895]
[1764518277740,0.8167312,91487.0,91486.0,0.03427895]
[1764518277940,0.8187312,91487.0,91486.0,0.03527895]
[1764518278241,0.8187312,91487.0,91486.0,0.01322895]
[1764518278835,0.8187312,91487.0,91486.0,0.03527895]
[1764518279439,0.8197312,91487.0,91486.0,0.03527895]
[1764518280138,0.8197312,91487.0,91486.0,0.05769895]
[1764518283244,0.8187312,91487.0,91486.0,0.05769895]
[1764518283445,0.5578,91487.0,91486.0,0.05769895]
[1764518299446,0.5578,91487.0,91486.0,0.07121895]
[1764518303462,0.197,91487.0,91486.0,0.07121895]
[1764518303760,0.5578,91487.0,91486.0,0.07121895]
[1764518304870,0.17476,91487.0,91486.0,0.07121895]
[1764518305355,0.19599,91487.0,91486.0,0.07121895]
[1764518332192,0.55679,91487.0,91486.0,0.07121895]
[1764518332391,0.55679,91487.0,91486.0,0.01322895]
[1764518333794,0.55679,91487.0,91486.0,0.02416025]
[1764518334093,0.55679,91487.0,91486.0,0.01322895]
[1764518337701,0.83679,91487.0,91486.0,0.01322895]
[1764518339192,0.83679,91487.0,91486.0,0.03424895]
[1764518342803,0.83679,91487.0,91486.0,0.05637895]
[1764518346397,0.47599,91487.0,91486.0,0.05637895]
[1764518346596,0.83679,91487.0,91486.0,0.05637895]
[1764518347595,0.8477212,91487.0,91486.0,0.05637895]
[1764518347897,0.4869212,91487.0,91486.0,0.05637895]
[1764518348100,0.8477212,91487.0,91486.0,0.05637895]
[1764518348400,0.8477212,91487.0,91486.0,0.01322895]
[1764518353295,0.4869212,91487.0,91486.0,0.01322895]
[1764518353508,0.8477212,91487.0,91486.0,0.03424895]
[1764518353894,0.4869212,91487.0,91486.0,0.03424895]
[1764518354095,0.8477212,91487.0,91486.0,0.03424895]
[1764518356408,0.4869212,91487.0,91486.0,0.03424895]
[1764518356905,0.8477212,91487.0,91486.0,0.01322895]
[1764518363414,0.4869212,91487.0,91486.0,0.01322895]
[1764518363607,0.8477212,91487.0,91486.0,0.01322895]
[1764518371223,0.04432,91471.0,91470.0,0.0686532]
[1764518371420,0.50512,91471.0,91470.0,0.0686532]
[1764518372733,0.50512,91471.0,91470.0,0.08396119]
[1764518372932,0.50712,91471.0,91470.0,0.08396119]
[1764518373528,0.50712,91471.0,91470.0,0.08296119]
[1764518373733,0.81512,91471.0,91470.0,0.08196119]
[1764518373933,0.81712,91471.0,91470.0,0.08296119]
[1764518374434,0.81712,91471.0,91470.0,0.08196119]
[1764518378130,0.45632,91471.0,91470.0,0.08196119]
[1764518397550,0.45632,91471.0,91470.0,0.18010079]
[1764518398146,0.412,91471.0,91470.0,0.18010079]
[1764518398453,0.38199,91476.0,91475.0,0.0552427]
[1764518399650,0.40366,91476.0,91475.0,0.0552427]
[1764518399847,0.44366,91476.0,91475.0,0.0552427]
[1764518400052,0.08486,91476.0,91475.0,0.0552427]
[1764518401441,0.08486,91476.0,91475.0,0.0582427]
[1764518401753,0.28486,91476.0,91475.0,0.0582427]
[1764518402253,0.28486,91476.0,91475.0,0.0592427]
[1764518402551,0.28286,91476.0,91475.0,0.0562427]
[1764518402752,0.28486,91476.0,91475.0,0.2313227]
[1764518403551,0.28486,91476.0,91475.0,0.2303227]
[1764518403753,0.28486,91476.0,91475.0,0.2313227]
[1764518404137,0.28486,91476.0,91475.0,0.2283227]
[1764518404347,0.28286,91476.0,91475.0,0.2283227]
[1764518404551,0.28286,91476.0,91475.0,0.2273227]
[1764518406654,0.28286,91476.0,91475.0,0.2283227]
[1764518406848,0.28286,91476.0,91475.0,0.1840127]
[1764518407057,0.28286,91476.0,91475.0,0.2283227]
[1764518407357,0.28286,91476.0,91475.0,0.0562427]
[1764518407558,0.28486,91476.0,91475.0,0.0592427]
[1764518408263,0.28486,91476.0,91475.0,0.0582427]
[1764518408449,0.28486,91476.0,91475.0,0.0592427]
[1764518410664,0.26319,91476.0,91475.0,0.0592427]
[1764518411363,0.002,91476.0,91475.0,0.0592427]
[1764518414754,0.02319,91476.0,91475.0,0.0592427]
[1764518414954,0.1056,91476.0,91475.0,0.0592427]
[1764518416057,0.0456,91476.0,91475.0,0.0592427]
[1764518416257,0.3556,91476.0,91475.0,0.0592427]
[1764518419070,0.1056,91476.0,91475.0,0.0592427]
[1764518419673,0.38282,91484.0,91483.0,0.0540817]
[1764518419870,0.37338408,91484.0,91483.0,0.0540817]
[1764518420268,0.39579408,91484.0,91483.0,0.0540817]
[1764518421265,0.39779408,91484.0,91483.0,0.0560817]
[1764518421465,0.39885356,91484.0,91483.0,0.0560817]
[1764518421773,0.39885356,91484.0,91483.0,0.2281617]
[1764518421977,0.39935291,91484.0,91483.0,0.2281617]
[1764518422579,0.39935291,91484.0,91483.0,0.2291617]
[1764518422975,0.39735291,91484.0,91483.0,0.2271617]
[1764518423176,0.39935291,91484.0,91483.0,0.2321617]
[1764518423475,0.39935291,91484.0,91483.0,0.2331617]
[1764518424275,0.04798883,91484.0,91483.0,0.2331617]
[1764518425975,0.04829457,91484.0,91483.0,0.2331617]
[1764518427578,0.00386457,91484.0,91483.0,0.2331617]
[1764518428376,0.04829457,91484.0,91483.0,0.2331617]
[1764518431681,0.08829457,91484.0,91483.0,0.2331617]
[1764518432281,0.08878689,91484.0,91483.0,0.2331617]
[1764518432678,0.08878689,91484.0,91483.0,0.0179317]
[1764518432886,0.48799921,91484.0,91483.0,0.007]
[1764518434080,0.84879921,91484.0,91483.0,0.007]
[1764518436700,0.44007921,91484.0,91483.0,0.05272]
[1764518437199,0.44007921,91484.0,91483.0,0.007]
[1764518437699,0.58007921,91484.0,91483.0,0.007]
[1764518439908,1.18959921,91484.0,91483.0,0.007]
[1764518440205,1.20053081,91484.0,91483.0,0.007]
[1764518447497,1.18959921,91484.0,91483.0,0.007]
[1764518460312,1.18959921,91484.0,91483.0,0.08551131]
[1764518461097,1.18959921,91484.0,91483.0,0.007]
[1764518467213,1.18087921,91484.0,91483.0,0.02809]
[1764518468421,0.89087921,91484.0,91483.0,0.02809]
[1764518469117,0.89087921,91484.0,91483.0,0.05083]
[1764518471412,0.77087921,91484.0,91483.0,0.05083]
[1764518471619,0.41007921,91484.0,91483.0,0.05083]
[1764518471815,0.44007921,91484.0,91483.0,0.05083]
[1764518474226,0.69007921,91484.0,91483.0,0.007]
[1764518476923,0.69007921,91484.0,91483.0,0.02819]
[1764518477229,0.69007921,91484.0,91483.0,0.05023]
[1764518480033,0.43766921,91484.0,91483.0,0.05023]
[1764518480234,0.46000921,91484.0,91483.0,0.05023]
[1764518490634,0.80000921,91484.0,91483.0,0.007]
[1764518504554,0.41000921,91484.0,91483.0,0.007]
[1764518509962,0.04381,91472.0,91471.0,0.07861069]
[1764518510160,0.0547431,91471.0,91470.0,0.09303346]
[1764518510459,0.0547431,91471.0,91470.0,0.01442277]
[1764518510660,0.0547431,91471.0,91470.0,0.02102]
[1764518510861,0.05759231,91471.0,91470.0,0.02102]
[1764518511559,0.05959231,91471.0,91470.0,0.05995714]
[1764518511959,0.05959231,91471.0,91470.0,0.06095714]
[1764518512555,0.05759231,91471.0,91470.0,0.05895714]
[1764518512761,0.05959231,91471.0,91470.0,0.05895714]
[1764518512963,0.04865921,91471.0,91470.0,0.06989044]
[1764518513260,0.05065921,91471.0,91470.0,0.06889044]
[1764518513961,0.05065921,91471.0,91470.0,0.07114714]
[1764518514163,0.22273921,91471.0,91470.0,1e-08]
[1764518514461,0.04381,91462.0,91461.0,0.00016397]
[1764518514655,0.40461,91462.0,91461.0,0.00016397]
[1764518514856,0.40745921,91462.0,91461.0,0.00016397]
[1764518515056,0.41839341,91462.0,91461.0,0.00016397]
[1764518516164,0.42139341,91462.0,91461.0,0.00016397]
[1764518516354,0.0109352,91455.0,91452.0,0.0109353]
[1764518516554,0.40461,91453.0,91452.0,0.0535653]
[1764518516854,0.40461,91453.0,91452.0,0.06904761]
[1764518517061,0.40745921,91453.0,91452.0,0.08223761]
[1764518517761,0.40745921,91453.0,91452.0,0.08323761]
[1764518518063,0.40945921,91453.0,91452.0,0.08323761]
[1764518518362,0.40945921,91453.0,91452.0,0.08223761]
[1764518518558,0.40945921,91453.0,91452.0,0.08323761]
[1764518530369,0.00484921,91453.0,91452.0,0.43323761]
[1764518530575,0.00016397,91471.0,91470.0,0.0667533]
[1764518530774,0.00016397,91471.0,91470.0,0.4467533]
[1764518531986,0.00616397,91471.0,91470.0,0.4467533]
[1764518533183,0.00616397,91471.0,91470.0,0.4477533]
[1764518533376,0.00016397,91471.0,91470.0,0.4477533]
[1764518533574,0.00216397,91471.0,91470.0,0.4477533]
[1764518533875,0.00216397,91471.0,91470.0,0.4467533]
[1764518534080,0.00216397,91471.0,91470.0,0.4477533]
[1764518534580,0.17216,91493.0,91470.0,0.4477533]
[1764518534581,0.3608,91483.0,91480.0,0.01325]
[1764518534880,0.3608,91491.0,91490.0,0.0557809]
[1764518535077,0.3608,91502.0,91501.0,0.0557796]
[1764518535272,0.38328,91502.0,91501.0,0.0557796]
[1764518535585,0.40533,91502.0,91501.0,0.0557796]
[1764518537177,0.40633,91502.0,91501.0,0.0557796]
[1764518537377,0.41333,91502.0,91501.0,0.0557796]
[1764518537983,0.40533,91502.0,91501.0,0.0557796]
[1764518538177,0.40933,91502.0,91501.0,0.0567796]
[1764518538378,0.3648,91502.0,91501.0,0.4167796]
[1764518542582,0.004,91502.0,91501.0,0.4167796]
[1764518544486,0.02648,91502.0,91501.0,0.4167796]
[1764518544677,0.04853,91502.0,91501.0,0.1767796]
[1764518545989,0.04853,91502.0,91501.0,0.4267796]
[1764518547982,0.04853,91502.0,91501.0,0.04585]
[1764518549295,0.04853,91502.0,91501.0,0.001]
[1764518549696,0.04853,91502.0,91501.0,0.04467]
[1764518554699,0.02648,91502.0,91501.0,0.04467]
[1764518555196,0.004,91502.0,91501.0,0.04467]
[1764518555591,0.04887,91502.0,91501.0,0.04467]
[1764518556396,0.004,91502.0,91501.0,0.47467]
[1764518559004,0.04887,91502.0,91501.0,0.47467]
[1764518560306,0.04887,91502.0,91501.0,0.12467]
[1764518562307,0.04887,91502.0,91501.0,0.04467]
[1764518566309,0.02627,91502.0,91501.0,0.04467]
[1764518567307,0.0488,91502.0,91501.0,0.04467]
[1764518576810,0.004,91502.0,91501.0,0.46467]
[1764518579015,0.02525,91502.0,91501.0,0.46467]
[1764518579318,0.004,91502.0,91501.0,0.46467]
[1764518582115,0.02525,91502.0,91501.0,0.46467]
[1764518582318,0.04778,91502.0,91501.0,0.46467]
[1764518583714,0.02525,91502.0,91501.0,0.46467]
[1764518586313,0.004,91502.0,91501.0,0.46467]
[1764518588125,0.3608,91507.0,91506.0,0.055389]
[1764518588322,0.00016397,91511.0,91510.0,0.0553885]
[1764518588626,0.00016397,91511.0,91510.0,0.4853885]
[1764518589525,0.04394397,91511.0,91510.0,0.02253]
[1764518589722,0.04378,91507.0,91506.0,0.04546]
[1764518589916,0.04378,91507.0,91506.0,0.07546]
[1764518590727,0.04378,91507.0,91506.0,0.07446]
[1764518590928,0.40458,91507.0,91506.0,0.07446]
[1764518591319,0.40758,91507.0,91506.0,0.02453]
[1764518591828,0.40758,91507.0,91506.0,0.04646]
[1764518592629,0.40758,91507.0,91506.0,0.02453]
[1764518593018,0.40758,91507.0,91506.0,0.035459]
[1764518593316,0.40758,91507.0,91506.0,0.057389]
[1764518594836,0.40758,91507.0,91506.0,0.002]
[1764518596015,0.43392712,91507.0,91506.0,0.002]
[1764518596218,0.40758,91507.0,91506.0,0.002]
[1764518596729,0.04471,91493.0,91492.0,0.02166397]
[1764518596929,0.40551,91493.0,91492.0,0.02166397]
[1764518597231,0.40551,91493.0,91492.0,0.04418397]
[1764518598131,0.40751,91493.0,91492.0,0.04918397]
[1764518600122,0.40551,91493.0,91492.0,0.04418397]
[1764518600325,0.40651,91493.0,91492.0,0.04618397]
[1764518601330,0.40551,91493.0,91492.0,0.04418397]
[1764518601532,0.40751,91493.0,91492.0,0.04818397]
[1764518602930,0.40551,91493.0,91492.0,0.04418397]
[1764518603135,0.40751,91493.0,91492.0,0.04718397]
[1764518603529,0.40551,91493.0,91492.0,0.04418397]
[1764518603836,0.40751,91493.0,91492.0,0.04818397]
[1764518604135,0.40751,91493.0,91492.0,0.04418397]
[1764518604136,0.40551,91493.0,91492.0,0.04418397]
[1764518604336,0.40551,91493.0,91492.0,0.04718397]
[1764518604337,0.40751,91493.0,91492.0,0.04718397]
[1764518604634,0.40751,91493.0,91492.0,0.06117397]
[1764518604834,0.40751,91493.0,91492.0,0.06217397]
[1764518605336,0.4184405,91493.0,91492.0,0.04818397]
[1764518605538,0.40751,91493.0,91492.0,0.04818397]
[1764518606232,0.40551,91493.0,91492.0,0.04418397]
[1764518606529,0.40751,91493.0,91492.0,0.04718397]
[1764518606936,0.40751,91493.0,91492.0,0.04818397]
[1764518607437,0.40751,91493.0,91492.0,0.04718397]
[1764518608733,0.3628,91493.0,91492.0,0.06117397]
[1764518609034,0.40526,91507.0,91506.0,0.04433]
[1764518610336,0.40826,91507.0,91506.0,0.04633]
[1764518613835,0.40826,91507.0,91506.0,0.44633]
[1764518614544,0.40826,91507.0,91506.0,0.11633]
[1764518616543,0.4191888,91507.0,91506.0,0.002]
[1764518617646,0.04446,91499.0,91498.0,0.0109299]
[1764518617941,0.40526,91499.0,91498.0,0.0109299]
[1764518618846,0.40626,91499.0,91498.0,0.0129299]
[1764518619845,0.40626,91499.0,91498.0,0.002]
[1764518625951,0.40626,91499.0,91492.0,0.00016397]
[1764518625952,0.0551505,91493.0,91492.0,0.00016397]
[1764518628047,0.0571505,91493.0,91492.0,0.00116397]
[1764518629154,0.0551505,91493.0,91492.0,0.00016397]
[1764518629351,0.0601505,91493.0,91492.0,0.00116397]
[1764518630862,0.0611505,91493.0,91492.0,0.00016397]
[1764518631360,0.0551505,91493.0,91492.0,0.00016397]
[1764518631558,0.0611505,91493.0,91492.0,0.00016397]
[1764518632253,0.02176,91481.0,91480.0,0.054342]
[1764518632459,0.40502,91481.0,91480.0,0.054342]
[1764518634758,0.40702,91481.0,91480.0,0.054342]
[1764518635459,0.4179519,91481.0,91480.0,0.04341]
[1764518635652,0.4159519,91481.0,91480.0,0.04341]
[1764518635854,0.4189519,91481.0,91480.0,0.04341]
[1764518637162,0.4159519,91481.0,91480.0,0.04341]
[1764518637462,0.4189519,91481.0,91480.0,0.04441]
[1764518637759,0.4159519,91481.0,91480.0,0.04341]
[1764518638063,0.4199519,91481.0,91480.0,0.04441]
[1764518638262,0.40902,91481.0,91480.0,0.04441]
[1764518639961,0.40902,91481.0,91480.0,0.001]
[1764518640160,0.05165,91472.0,91471.0,0.00016397]
[1764518640362,0.41245,91472.0,91471.0,0.00016397]
[1764518641555,0.41845,91472.0,91471.0,0.00116397]
[1764518643058,0.41245,91472.0,91471.0,0.00016397]
[1764518643260,0.41245,91472.0,91471.0,0.00116397]
[1764518643261,0.41845,91472.0,91471.0,0.00116397]
[1764518643966,0.41845,91472.0,91471.0,0.02329397]
[1764518647157,0.41645,91472.0,91471.0,0.02329397]
[1764518648164,0.41645,91472.0,91471.0,0.00116397]
[1764518652273,0.41245,91472.0,91471.0,0.00116397]
[1764518652473,0.41645,91472.0,91471.0,0.00116397]
[1764518652975,0.41245,91472.0,91471.0,0.00016397]
[1764518653177,0.41745,91472.0,91471.0,0.02329397]
[1764518653582,0.41245,91472.0,91471.0,0.02229397]
[1764518653785,0.41745,91472.0,91471.0,0.02329397]
[1764518654177,0.41245,91472.0,91471.0,0.02229397]
[1764518654377,0.41745,91472.0,91471.0,0.02329397]
[1764518656485,0.41745,91472.0,91471.0,0.04516397]
[1764518656686,0.41002,91472.0,91471.0,0.04516397]
[1764518657080,0.40502,91472.0,91471.0,0.04416397]
[1764518657281,0.41102,91472.0,91471.0,0.04516397]
[1764518657787,0.40502,91472.0,91471.0,0.04416397]
[1764518657983,0.41002,91472.0,91471.0,0.04516397]
[1764518658477,0.40802,91472.0,91471.0,0.04516397]
[1764518659286,0.3638,91472.0,91471.0,0.04516397]
[1764518659583,0.003,91472.0,91471.0,0.47516397]
[1764518660189,0.40639,91478.0,91477.0,0.0449]
[1764518660389,0.04559,91478.0,91477.0,0.4858324]
[1764518661086,0.04559,91478.0,91477.0,0.0558324]
[1764518661287,0.04559,91478.0,91477.0,0.1558324]
[1764518661483,0.04759,91478.0,91477.0,0.1568324]
[1764518662083,0.04759,91478.0,91477.0,0.1578324]
[1764518664798,0.04859,91478.0,91477.0,0.1578324]
[1764518666292,0.04559,91478.0,91477.0,0.1558324]
[1764518666495,0.04759,91478.0,91477.0,0.1578324]
[1764518667000,0.04859,91478.0,91477.0,0.1568324]
[1764518672002,0.04859,91478.0,91477.0,0.4368324]
[1764518673098,0.04559,91478.0,91477.0,0.4358324]
[1764518673404,0.04859,91478.0,91477.0,0.4368324]
[1764518674304,0.04759,91478.0,91477.0,0.4378324]
[1764518677011,0.40839,91478.0,91477.0,0.4378324]
[1764518679911,0.04759,91478.0,91477.0,0.4378324]
[1764518680213,0.40839,91478.0,91477.0,0.4378324]
[1764518681611,0.40839,91478.0,91477.0,0.0578324]
[1764518681815,0.40839,91478.0,91477.0,0.1578324]
[1764518683317,0.40839,91478.0,91477.0,0.4778324]
[1764518685506,0.40639,91478.0,91477.0,0.4758324]
[1764518685703,0.40839,91478.0,91477.0,0.4778324]
[1764518686104,0.40639,91478.0,91477.0,0.4758324]
[1764518686309,0.40839,91478.0,91477.0,0.4778324]
[1764518688023,0.40839,91478.0,91477.0,0.1678324]
[1764518688210,0.40839,91478.0,91477.0,0.1658324]
[1764518688417,0.40839,91478.0,91477.0,0.4168324]
[1764518688824,0.40639,91478.0,91477.0,0.4158324]
[1764518689027,0.40839,91478.0,91477.0,0.4178324]
[1764518689522,0.371731,91489.0,91477.0,0.4178324]
[1764518689523,0.40527,91489.0,91488.0,0.05276]
[1764518689724,0.3608,91489.0,91488.0,0.4936911]
[1764518690522,0.38254,91489.0,91488.0,0.4936911]
[1764518691732,0.38654,91489.0,91488.0,0.4956911]
[1764518692332,0.38354,91489.0,91488.0,0.4956911]
[1764518692832,0.02274,91489.0,91488.0,0.4956911]
[1764518694225,0.001,91489.0,91488.0,0.4956911]
[1764518695136,0.02274,91489.0,91488.0,0.4956911]
[1764518695331,0.02274,91489.0,91488.0,0.2556911]
[1764518696338,0.02274,91489.0,91488.0,0.4256911]
[1764518696741,0.04547,91489.0,91488.0,0.1956911]
[1764518697942,0.04547,91489.0,91488.0,0.3956911]
[1764518700345,0.001,91489.0,91488.0,0.3956911]
[1764518701233,0.04547,91489.0,91488.0,0.3956911]
[1764518702349,0.02274,91489.0,91488.0,0.3956911]
[1764518703149,0.04547,91489.0,91488.0,0.3956911]
[1764518704551,0.04447,91489.0,91488.0,0.3936911]
[1764518704747,0.04547,91489.0,91488.0,0.3966911]
[1764518705351,0.04547,91489.0,91488.0,0.3956911]
[1764518705748,0.04547,91489.0,91488.0,0.0656911]
[1764518707255,0.04447,91489.0,91488.0,0.0636911]
[1764518707555,0.04547,91489.0,91488.0,0.0646911]
[1764518708654,0.04647,91489.0,91488.0,0.0646911]
[1764518713754,0.40527,91489.0,91488.0,0.0636911]
[1764518713960,0.40727,91489.0,91488.0,0.0646911]
[1764518714351,0.40527,91489.0,91488.0,0.0636911]
[1764518714551,0.40727,91489.0,91488.0,0.0646911]
[1764518717060,0.04647,91489.0,91488.0,0.0646911]
[1764518719961,0.04647,91489.0,91488.0,0.0560511]
[1764518720961,0.04447,91489.0,91488.0,0.0687411]
[1764518721162,0.04747,91489.0,91488.0,0.0697411]
[1764518721562,0.04447,91489.0,91488.0,0.0687411]
[1764518721765,0.04647,91489.0,91488.0,0.0697411]
[1764518723065,0.04447,91489.0,91488.0,0.0687411]
[1764518723268,0.04747,91489.0,91488.0,0.0697411]
[1764518723650,0.04447,91489.0,91488.0,0.0687411]
[1764518723851,0.04647,91489.0,91488.0,0.0697411]
[1764518724470,0.04747,91489.0,91488.0,0.0697411]
[1764518726078,0.04647,91489.0,91488.0,0.0697411]
[1764518727170,0.04447,91489.0,91488.0,0.0687411]
[1764518727370,0.04647,91489.0,91488.0,0.0697411]
[1764518727771,0.002,91489.0,91488.0,0.4397411]
[1764518730172,0.002,91489.0,91488.0,0.4407411]
[1764518730361,0.001,91489.0,91488.0,0.4417411]
[1764518730964,0.00016397,91490.0,91488.0,0.4397411]
[1764518731265,0.001,91489.0,91488.0,0.3976211]
[1764518731461,0.001,91489.0,91488.0,0.4434311]
[1764518732472,0.00016397,91490.0,91488.0,0.4414311]
[1764518732773,0.00116397,91490.0,91488.0,0.4434311]
[1764518732969,0.00116397,91490.0,91489.0,0.04581]
[1764518733170,0.02213397,91490.0,91489.0,0.41581]
[1764518733776,0.02313397,91490.0,91489.0,0.41581]
[1764518734877,0.04421397,91490.0,91489.0,0.41581]
[1764518735281,0.04321397,91490.0,91489.0,0.41581]
[1764518735480,0.04421397,91490.0,91489.0,0.41881]
[1764518735778,0.02313397,91490.0,91489.0,0.41881]
[1764518736774,0.00116397,91490.0,91489.0,0.41881]
[1764518738679,0.00116397,91490.0,91489.0,0.41781]
[1764518742483,0.00116397,91490.0,91489.0,0.53891]
[1764518744182,0.02313397,91490.0,91489.0,0.53891]
[1764518745185,0.00116397,91490.0,91489.0,0.53891]
[1764518747880,0.02428397,91490.0,91489.0,0.16891]
[1764518748179,0.02428397,91490.0,91489.0,0.58891]
[1764518748577,0.00116397,91490.0,91489.0,0.58891]
[1764518749686,0.02428397,91490.0,91489.0,0.58891]
[1764518749877,0.00116397,91490.0,91489.0,0.58891]
[1764518766310,0.3608,91498.0,91497.0,0.01093]
[1764518766499,0.3608,91509.0,91508.0,0.045]
[1764518766703,0.38392,91509.0,91508.0,0.4859287]
[1764518767103,0.40632,91509.0,91508.0,0.4859287]
[1764518768212,0.41232,91509.0,91508.0,0.4879287]
[1764518770411,0.41232,91509.0,91508.0,0.4869287]
[1764518771709,0.41232,91509.0,91508.0,0.1469287]
[1764518772014,0.41875,91509.0,91508.0,0.1469287]
[1764518776516,0.41232,91509.0,91508.0,0.4369287]
[1764518777615,0.41232,91509.0,91508.0,0.0969287]
[1764518778024,0.41232,91509.0,91508.0,0.3469287]
[1764518785220,0.05152,91509.0,91508.0,0.3469287]
[1764518785531,0.41232,91509.0,91508.0,0.3469287]
[1764518788528,0.41901,91509.0,91508.0,0.3244487]
[1764518789132,0.41901,91509.0,91508.0,0.3468587]
[1764518789319,0.41232,91509.0,91508.0,0.3468587]
[1764518796331,0.41232,91509.0,91508.0,0.44504276]
[1764518800934,0.38992,91509.0,91508.0,0.44504276]
[1764518802746,0.3668,91509.0,91508.0,0.44504276]
[1764518803537,0.41185,91509.0,91508.0,0.44504276]
[1764518806250,0.38878,91509.0,91508.0,0.44504276]
[1764518806550,0.41185,91509.0,91508.0,0.44504276]
[1764518807050,0.3668,91509.0,91508.0,0.3468587]
[1764518807749,0.3668,91509.0,91508.0,0.4679587]
[1764518811743,0.41185,91509.0,91508.0,0.4679587]
[1764518813945,0.3668,91509.0,91508.0,0.4679587]
[1764518814145,0.00016397,91518.0,91517.0,0.04468]
[1764518814351,0.04505,91523.0,91522.0,0.033237]
[1764518814547,0.04505,91519.0,91518.0,0.0556074]
[1764518814753,0.04505,91519.0,91518.0,0.0332374]
[1764518815455,0.04505,91519.0,91518.0,0.0109274]
[1764518815657,0.04505,91519.0,91518.0,0.0129274]
[1764518815857,0.05305,91519.0,91518.0,0.0129274]
[1764518816060,0.05305,91519.0,91518.0,0.11126373]
[1764518816257,0.05305,91519.0,91518.0,0.13357373]
[1764518816560,0.05405,91519.0,91518.0,0.0352374]
[1764518816945,0.05405,91519.0,91518.0,0.0129274]
[1764518817354,0.0649774,91519.0,91518.0,0.0129274]
[1764518818862,0.0649774,91519.0,91518.0,0.002]
[1764518820563,0.05405,91519.0,91518.0,0.002]
[1764518824566,0.05405,91519.0,91518.0,0.0129275]
[1764518824864,0.05405,91519.0,91518.0,0.002]
[1764518826869,0.09405,91519.0,91518.0,0.002]
[1764518827863,0.09405,91519.0,91518.0,0.0129275]
[1764518828076,0.09405,91519.0,91518.0,0.002]
[1764518828570,0.09405,91519.0,91518.0,0.0129275]
[1764518828765,0.05405,91519.0,91518.0,0.0129275]